[Event "Titled Tuesday Blitz May 23 Late 2023"]
[White "Tejedor Fuente, Enrique"]
[Black "Mikhalsky, Vladimir"]
[WhiteFideId "2299100"]
[BlackFideId "14144352"]
[WhiteElo "2496"]
[BlackElo "2236"]
[Result "1-0"]
[Round "03"]
[TimeControl "180+2"]
[Date "2023.05.23"]
[WhiteClock "0:00:33"]
[BlackClock "0:00:00"]

1. d4 {[%clk 0:02:53]}  Nf6 {[%clk 0:02:59]} 2. Nc3 {[%clk 0:02:50]}  g6 {[%clk 0:02:59]} 3. e4 {[%clk 0:02:48]}  d6 {[%clk 0:03:00]} 4. h3 {[%clk 0:02:47]}  Bg7 {[%clk 0:03:00]} 5. Nf3 {[%clk 0:02:47]}  O-O {[%clk 0:03:00]} 6. Bd3 {[%clk 0:02:46]}  a6 {[%clk 0:02:57]} 7. a4 {[%clk 0:02:45]}  Nc6 {[%clk 0:02:54]} 8. O-O {[%clk 0:02:42]}  e5 {[%clk 0:02:52]} 9. Be3 {[%clk 0:02:41]}  d5 {[%clk 0:02:40]} 10. exd5 {[%clk 0:02:38]}  Nxd5 {[%clk 0:02:28]} 11. Nxd5 {[%clk 0:02:39]}  Qxd5 {[%clk 0:02:27]} 12. c4 {[%clk 0:02:38]}  Qa5 {[%clk 0:02:25]} 13. d5 {[%clk 0:02:32]}  Nd4 {[%clk 0:02:21]} 14. Nxd4 {[%clk 0:02:30]}  exd4 {[%clk 0:02:21]} 15. Bd2 {[%clk 0:02:31]}  Qb6 {[%clk 0:02:15]} 16. a5 {[%clk 0:02:24]}  Qf6 {[%clk 0:02:08]} 17. Re1 {[%clk 0:02:16]}  Bf5 {[%clk 0:02:06]} 18. Qf3 {[%clk 0:02:13]}  Bxd3 {[%clk 0:01:56]} 19. Qxd3 {[%clk 0:02:14]}  Rfe8 {[%clk 0:01:55]} 20. Qb3 {[%clk 0:02:09]}  b6 {[%clk 0:01:41]} 21. axb6 {[%clk 0:02:06]}  Qxb6 {[%clk 0:01:40]} 22. Qxb6 {[%clk 0:02:00]}  cxb6 {[%clk 0:01:38]} 23. Rxe8+ {[%clk 0:02:00]}  Rxe8 {[%clk 0:01:37]} 24. Rxa6 {[%clk 0:02:00]}  Bf8 {[%clk 0:01:24]} 25. Rxb6 {[%clk 0:01:54]}  Re2 {[%clk 0:01:21]} 26. Bf4 {[%clk 0:01:38]}  d3 {[%clk 0:01:19]} 27. Rb8 {[%clk 0:01:37]}  Kg7 {[%clk 0:00:54]} 28. Kf1 {[%clk 0:01:33]}  Rc2 {[%clk 0:00:52]} 29. Be3 {[%clk 0:01:13]}  Bc5 {[%clk 0:00:45]} 30. Ke1 {[%clk 0:01:05]}  Bd6 {[%clk 0:00:17]} 31. Rb3 {[%clk 0:01:01]}  Re2+ {[%clk 0:00:12]} 32. Kd1 {[%clk 0:00:59]}  Rc2 {[%clk 0:00:11]} 33. Rc3 {[%clk 0:00:38]}  Rxb2 {[%clk 0:00:10]} 34. Rxd3 {[%clk 0:00:38]}  f6 {[%clk 0:00:08]} 35. c5 {[%clk 0:00:37]}  Be5 {[%clk 0:00:08]} 36. d6 {[%clk 0:00:37]}  Rb1+ {[%clk 0:00:08]} 37. Kc2 {[%clk 0:00:37]}  Rb5 {[%clk 0:00:06]} 38. f4 {[%clk 0:00:36]}  Bxf4 {[%clk 0:00:05]} 39. Bxf4 {[%clk 0:00:36]}  Rxc5+ {[%clk 0:00:05]} 40. Rc3 {[%clk 0:00:35]}  Rd5 {[%clk 0:00:05]} 41. Rd3 {[%clk 0:00:35]}  Rxd3 {[%clk 0:00:04]} 42. Kxd3 {[%clk 0:00:35]}  Kf7 {[%clk 0:00:05]} 43. Kc4 {[%clk 0:00:34]}  Ke6 {[%clk 0:00:05]} 44. Kc5 {[%clk 0:00:35]}  g5 {[%clk 0:00:03]} 45. Kc6 {[%clk 0:00:33]}  gxf4 {[%clk 0:00:00]} 46. d7 {[%clk 0:00:33]} 1-0


[Site "https://www.chess.com"]

[Event "Titled Tuesday Blitz May 23 Late 2023"]
[White "Kirillov, Dmitry"]
[Black "koncheto"]
[WhiteFideId "34180572"]
[WhiteElo "2161"]
[BlackElo "2629"]
[Result "0-1"]
[Round "03"]
[TimeControl "180+2"]
[Date "2023.05.23"]
[WhiteClock "0:00:01"]
[BlackClock "0:00:09"]

1. e4 {[%clk 0:03:00]}  e5 {[%clk 0:02:58]} 2. Nf3 {[%clk 0:03:00]}  Nf6 {[%clk 0:02:56]} 3. Nc3 {[%clk 0:02:58]}  Nc6 {[%clk 0:02:52]} 4. Nxe5 {[%clk 0:02:58]}  Nxe5 {[%clk 0:02:45]} 5. d4 {[%clk 0:02:59]}  Nc6 {[%clk 0:02:37]} 6. d5 {[%clk 0:02:59]}  Bb4 {[%clk 0:02:33]} 7. dxc6 {[%clk 0:02:55]}  bxc6 {[%clk 0:02:33]} 8. Bd3 {[%clk 0:02:54]}  d5 {[%clk 0:02:32]} 9. exd5 {[%clk 0:02:55]}  cxd5 {[%clk 0:02:32]} 10. O-O {[%clk 0:02:56]}  O-O {[%clk 0:02:31]} 11. Bg5 {[%clk 0:02:56]}  c6 {[%clk 0:02:22]} 12. Qf3 {[%clk 0:02:45]}  Be6 {[%clk 0:02:19]} 13. Rad1 {[%clk 0:02:42]}  Rb8 {[%clk 0:02:09]} 14. h3 {[%clk 0:02:07]}  h6 {[%clk 0:02:03]} 15. Bh4 {[%clk 0:02:05]}  Bd6 {[%clk 0:02:01]} 16. Rfe1 {[%clk 0:02:02]}  Rxb2 {[%clk 0:02:00]} 17. Ne2 {[%clk 0:01:36]}  Rxa2 {[%clk 0:01:48]} 18. Nd4 {[%clk 0:01:36]}  Ra4 {[%clk 0:01:38]} 19. Rxe6 {[%clk 0:01:06]}  fxe6 {[%clk 0:01:17]} 20. Nxe6 {[%clk 0:01:07]}  Qe7 {[%clk 0:01:07]} 21. Nxf8 {[%clk 0:01:05]}  Qxf8 {[%clk 0:01:08]} 22. Bxf6 {[%clk 0:00:48]}  Qxf6 {[%clk 0:01:06]} 23. Qh5 {[%clk 0:00:48]}  Ra1 {[%clk 0:00:54]} 24. Qe8+ {[%clk 0:00:27]}  Bf8 {[%clk 0:00:51]} 25. Rxa1 {[%clk 0:00:25]}  Qxa1+ {[%clk 0:00:49]} 26. Kh2 {[%clk 0:00:25]}  Qd4 {[%clk 0:00:48]} 27. Qxc6 {[%clk 0:00:15]}  Qxf2 {[%clk 0:00:46]} 28. Qxd5+ {[%clk 0:00:14]}  Kh8 {[%clk 0:00:46]} 29. Qe4 {[%clk 0:00:13]}  Kg8 {[%clk 0:00:40]} 30. Qh7+ {[%clk 0:00:12]}  Kf7 {[%clk 0:00:40]} 31. Bc4+ {[%clk 0:00:11]}  Kf6 {[%clk 0:00:39]} 32. Qe4 {[%clk 0:00:08]}  Bd6+ {[%clk 0:00:38]} 33. Kh1 {[%clk 0:00:07]}  Be5 {[%clk 0:00:38]} 34. Qc6+ {[%clk 0:00:06]}  Kg5 {[%clk 0:00:37]} 35. Qe4 {[%clk 0:00:05]}  Qg3 {[%clk 0:00:36]} 36. Kg1 {[%clk 0:00:03]}  a5 {[%clk 0:00:34]} 37. Bd3 {[%clk 0:00:02]}  Kf6 {[%clk 0:00:29]} 38. Qf5+ {[%clk 0:00:02]}  Ke7 {[%clk 0:00:29]} 39. Qe4 {[%clk 0:00:02]}  Kd6 {[%clk 0:00:25]} 40. Bc4 {[%clk 0:00:02]}  Ke7 {[%clk 0:00:22]} 41. Bd3 {[%clk 0:00:02]}  Qf4 {[%clk 0:00:20]} 42. Qb7+ {[%clk 0:00:02]}  Kf8 {[%clk 0:00:17]} 43. Qc8+ {[%clk 0:00:01]}  Kf7 {[%clk 0:00:17]} 44. Bc4+ {[%clk 0:00:02]}  Kg6 {[%clk 0:00:15]} 45. Qe6+ {[%clk 0:00:02]}  Kg5 {[%clk 0:00:15]} 46. Bd3 {[%clk 0:00:03]}  Qc1+ {[%clk 0:00:08]} 47. Kf2 {[%clk 0:00:02]}  Bd4+ {[%clk 0:00:09]} 48. Kg3 {[%clk 0:00:01]}  Qf4# {[%clk 0:00:09]} 0-1


[Site "https://www.chess.com"]

[Event "Titled Tuesday Blitz May 23 Late 2023"]
[White "NikaVolkov"]
[Black "Zaitsev, Alexander"]
[BlackFideId "4164490"]
[WhiteElo "2627"]
[BlackElo "2373"]
[Result "1-0"]
[Round "03"]
[TimeControl "180+2"]
[Date "2023.05.23"]
[WhiteClock "0:01:29"]
[BlackClock "0:00:00"]

1. d4 {[%clk 0:03:00]}  Nf6 {[%clk 0:03:00]} 2. Nf3 {[%clk 0:03:00]}  e6 {[%clk 0:03:00]} 3. e3 {[%clk 0:03:00]}  c5 {[%clk 0:02:57]} 4. c4 {[%clk 0:03:01]}  cxd4 {[%clk 0:02:53]} 5. exd4 {[%clk 0:03:02]}  d5 {[%clk 0:02:53]} 6. Nc3 {[%clk 0:03:03]}  Be7 {[%clk 0:02:53]} 7. Be2 {[%clk 0:03:03]}  dxc4 {[%clk 0:02:53]} 8. Bxc4 {[%clk 0:03:03]}  O-O {[%clk 0:02:53]} 9. O-O {[%clk 0:03:04]}  Nbd7 {[%clk 0:02:40]} 10. Bg5 {[%clk 0:03:02]}  Nb6 {[%clk 0:02:39]} 11. Bd3 {[%clk 0:03:01]}  Nbd5 {[%clk 0:02:34]} 12. Rc1 {[%clk 0:03:00]}  Bd7 {[%clk 0:02:31]} 13. Re1 {[%clk 0:03:00]}  Bc6 {[%clk 0:02:26]} 14. Ne5 {[%clk 0:03:00]}  Rc8 {[%clk 0:02:23]} 15. Bb1 {[%clk 0:02:57]}  Nd7 {[%clk 0:01:48]} 16. Qh5 {[%clk 0:02:22]}  f5 {[%clk 0:01:15]} 17. Nxc6 {[%clk 0:02:04]}  Rxc6 {[%clk 0:01:05]} 18. Bxe7 {[%clk 0:01:58]}  Nxe7 {[%clk 0:00:55]} 19. Rcd1 {[%clk 0:01:56]}  Nf6 {[%clk 0:00:54]} 20. Qf3 {[%clk 0:01:53]}  Ned5 {[%clk 0:00:54]} 21. Bc2 {[%clk 0:01:52]}  Nxc3 {[%clk 0:00:38]} 22. bxc3 {[%clk 0:01:52]}  Qc7 {[%clk 0:00:39]} 23. Bb3 {[%clk 0:01:51]}  Ne4 {[%clk 0:00:32]} 24. c4 {[%clk 0:01:44]}  Rd8 {[%clk 0:00:24]} 25. d5 {[%clk 0:01:43]}  Rcd6 {[%clk 0:00:16]} 26. dxe6 {[%clk 0:01:40]}  Nc5 {[%clk 0:00:10]} 27. Rxd6 {[%clk 0:01:30]}  Qxd6 {[%clk 0:00:09]} 28. e7 {[%clk 0:01:30]}  Re8 {[%clk 0:00:09]} 29. Qd5+ {[%clk 0:01:30]}  Qxd5 {[%clk 0:00:07]} 30. cxd5 {[%clk 0:01:30]}  Kf7 {[%clk 0:00:02]} 31. d6+ {[%clk 0:01:31]}  Kf6 {[%clk 0:00:00]} 32. Ba4 {[%clk 0:01:29]} 1-0


[Site "https://www.chess.com"]

[Event "Titled Tuesday Blitz May 23 Late 2023"]
[White "nicolasulaneobelassi"]
[Black "Kleiman, Jake"]
[BlackFideId "2020041"]
[WhiteElo "2413"]
[BlackElo "2626"]
[Result "1-0"]
[Round "03"]
[TimeControl "180+2"]
[Date "2023.05.23"]
[WhiteClock "0:00:16"]
[BlackClock "0:00:04"]

1. e4 {[%clk 0:03:00]}  e5 {[%clk 0:02:58]} 2. Nf3 {[%clk 0:03:00]}  Nc6 {[%clk 0:02:58]} 3. d4 {[%clk 0:02:59]}  exd4 {[%clk 0:02:58]} 4. Bc4 {[%clk 0:03:00]}  Nf6 {[%clk 0:02:56]} 5. O-O {[%clk 0:02:59]}  d6 {[%clk 0:02:54]} 6. Nxd4 {[%clk 0:02:49]}  Be7 {[%clk 0:02:54]} 7. Nc3 {[%clk 0:02:47]}  O-O {[%clk 0:02:54]} 8. Nxc6 {[%clk 0:02:44]}  bxc6 {[%clk 0:02:53]} 9. Bf4 {[%clk 0:02:33]}  Nd7 {[%clk 0:02:53]} 10. Qd2 {[%clk 0:02:29]}  Bf6 {[%clk 0:02:52]} 11. Rad1 {[%clk 0:02:16]}  Re8 {[%clk 0:02:50]} 12. Rfe1 {[%clk 0:02:15]}  Rb8 {[%clk 0:02:47]} 13. Bb3 {[%clk 0:02:15]}  Ne5 {[%clk 0:02:36]} 14. h3 {[%clk 0:02:10]}  h6 {[%clk 0:02:10]} 15. Bg3 {[%clk 0:02:09]}  Bh4 {[%clk 0:01:56]} 16. Bh2 {[%clk 0:01:59]}  Qf6 {[%clk 0:01:35]} 17. Rf1 {[%clk 0:01:54]}  Nf3+ {[%clk 0:00:52]} 18. gxf3 {[%clk 0:01:51]}  Bxh3 {[%clk 0:00:52]} 19. Qf4 {[%clk 0:01:38]}  Qg6+ {[%clk 0:00:46]} 20. Bg3 {[%clk 0:01:38]}  Bg5 {[%clk 0:00:45]} 21. Qxf7+ {[%clk 0:01:28]}  Qxf7 {[%clk 0:00:46]} 22. Bxf7+ {[%clk 0:01:27]}  Kxf7 {[%clk 0:00:47]} 23. Rfe1 {[%clk 0:01:26]}  Rxb2 {[%clk 0:00:46]} 24. f4 {[%clk 0:01:12]}  Be7 {[%clk 0:00:38]} 25. Kh2 {[%clk 0:01:01]}  Bg4 {[%clk 0:00:37]} 26. Rd2 {[%clk 0:01:01]}  h5 {[%clk 0:00:28]} 27. Kg2 {[%clk 0:00:57]}  h4 {[%clk 0:00:28]} 28. Bh2 {[%clk 0:00:57]}  Bd7 {[%clk 0:00:20]} 29. f5 {[%clk 0:00:56]}  Bc8 {[%clk 0:00:18]} 30. Bf4 {[%clk 0:00:55]}  Bf6 {[%clk 0:00:19]} 31. Nd1 {[%clk 0:00:45]}  Rxa2 {[%clk 0:00:18]} 32. f3 {[%clk 0:00:43]}  Ra4 {[%clk 0:00:17]} 33. Ree2 {[%clk 0:00:38]}  Bxf5 {[%clk 0:00:16]} 34. Bxd6 {[%clk 0:00:35]}  Bxe4 {[%clk 0:00:13]} 35. fxe4 {[%clk 0:00:32]}  cxd6 {[%clk 0:00:12]} 36. Rxd6 {[%clk 0:00:32]}  Raxe4 {[%clk 0:00:13]} 37. Rxe4 {[%clk 0:00:31]}  Rxe4 {[%clk 0:00:14]} 38. Rxc6 {[%clk 0:00:31]}  g5 {[%clk 0:00:13]} 39. Nf2 {[%clk 0:00:27]}  Re7 {[%clk 0:00:12]} 40. Ng4 {[%clk 0:00:25]}  Bg7 {[%clk 0:00:12]} 41. Kf3 {[%clk 0:00:23]}  Rb7 {[%clk 0:00:10]} 42. Rc5 {[%clk 0:00:20]}  Kg6 {[%clk 0:00:09]} 43. Ne3 {[%clk 0:00:18]}  Bd4 {[%clk 0:00:08]} 44. Rc6+ {[%clk 0:00:18]}  Kh5 {[%clk 0:00:07]} 45. Nf5 {[%clk 0:00:17]}  Be5 {[%clk 0:00:04]} 46. Rh6# {[%clk 0:00:16]} 1-0


[Site "https://www.chess.com"]

[Event "Titled Tuesday Blitz May 23 Late 2023"]
[White "zsizsi99"]
[Black "Denishev, Marat"]
[BlackFideId "24131563"]
[WhiteElo "2406"]
[BlackElo "2311"]
[Result "0-1"]
[Round "03"]
[TimeControl "180+2"]
[Date "2023.05.23"]
[WhiteClock "0:00:07"]
[BlackClock "0:00:03"]

1. e4 {[%clk 0:03:00]}  c5 {[%clk 0:03:00]} 2. Nf3 {[%clk 0:03:00]}  d6 {[%clk 0:03:00]} 3. c3 {[%clk 0:02:53]}  Nf6 {[%clk 0:03:00]} 4. Bd3 {[%clk 0:02:53]}  g6 {[%clk 0:03:00]} 5. h3 {[%clk 0:02:52]}  Bg7 {[%clk 0:03:00]} 6. Bc2 {[%clk 0:02:52]}  O-O {[%clk 0:03:00]} 7. O-O {[%clk 0:02:52]}  e5 {[%clk 0:03:01]} 8. d4 {[%clk 0:02:52]}  exd4 {[%clk 0:03:00]} 9. cxd4 {[%clk 0:02:52]}  Nc6 {[%clk 0:03:01]} 10. dxc5 {[%clk 0:02:40]}  dxc5 {[%clk 0:02:57]} 11. Qxd8 {[%clk 0:02:40]}  Rxd8 {[%clk 0:02:58]} 12. Be3 {[%clk 0:02:40]}  b6 {[%clk 0:02:53]} 13. a3 {[%clk 0:02:33]}  Ba6 {[%clk 0:02:51]} 14. Re1 {[%clk 0:02:31]}  Na5 {[%clk 0:02:44]} 15. Nfd2 {[%clk 0:02:24]}  Rd7 {[%clk 0:02:28]} 16. Nc3 {[%clk 0:02:23]}  Rad8 {[%clk 0:02:26]} 17. Rad1 {[%clk 0:02:22]}  Bd3 {[%clk 0:02:19]} 18. Ba4 {[%clk 0:02:19]}  Re7 {[%clk 0:02:08]} 19. b4 {[%clk 0:02:16]}  Nb7 {[%clk 0:02:02]} 20. bxc5 {[%clk 0:01:56]}  Nxc5 {[%clk 0:02:03]} 21. Bxc5 {[%clk 0:01:52]}  bxc5 {[%clk 0:02:03]} 22. f3 {[%clk 0:01:50]}  Nh5 {[%clk 0:01:53]} 23. Nd5 {[%clk 0:01:47]}  Bd4+ {[%clk 0:01:31]} 24. Kh1 {[%clk 0:01:41]}  Rb7 {[%clk 0:01:25]} 25. g4 {[%clk 0:01:28]}  Ng7 {[%clk 0:01:01]} 26. Nf1 {[%clk 0:01:25]}  Ba6 {[%clk 0:00:48]} 27. Nfe3 {[%clk 0:01:10]}  Ne6 {[%clk 0:00:47]} 28. Nc2 {[%clk 0:01:03]}  Bf2 {[%clk 0:00:41]} 29. Nf6+ {[%clk 0:00:57]}  Kg7 {[%clk 0:00:41]} 30. Rxd8 {[%clk 0:00:56]}  Nxd8 {[%clk 0:00:35]} 31. Ne8+ {[%clk 0:00:56]}  Kf8 {[%clk 0:00:31]} 32. Rd1 {[%clk 0:00:56]}  Be2 {[%clk 0:00:17]} 33. Rc1 {[%clk 0:00:14]}  Bxf3+ {[%clk 0:00:16]} 34. Kh2 {[%clk 0:00:15]}  Rb2 {[%clk 0:00:16]} 35. Nd6 {[%clk 0:00:14]}  Be3 {[%clk 0:00:12]} 36. Rf1 {[%clk 0:00:13]}  Bf4+ {[%clk 0:00:11]} 37. Kg1 {[%clk 0:00:12]}  Bxd6 {[%clk 0:00:06]} 38. Rxf3 {[%clk 0:00:13]}  Ne6 {[%clk 0:00:06]} 39. Rd3 {[%clk 0:00:12]}  Be5 {[%clk 0:00:05]} 40. Kf2 {[%clk 0:00:10]}  Nf4 {[%clk 0:00:05]} 41. Rd8+ {[%clk 0:00:08]}  Kg7 {[%clk 0:00:05]} 42. Re8 {[%clk 0:00:07]}  f6 {[%clk 0:00:03]} 43. Ke3 {[%clk 0:00:06]}  Nxh3 {[%clk 0:00:02]} 44. Re7+ {[%clk 0:00:06]}  Kh6 {[%clk 0:00:02]} 45. Rxa7 {[%clk 0:00:07]}  Ng1 {[%clk 0:00:02]} 46. Kf2 {[%clk 0:00:06]}  Nh3+ {[%clk 0:00:02]} 47. Ke3 {[%clk 0:00:07]}  Nf4 {[%clk 0:00:02]} 48. Kf3 {[%clk 0:00:07]}  Nd3 {[%clk 0:00:03]} 49. Ne3 {[%clk 0:00:07]}  Ne1# {[%clk 0:00:03]} 0-1


[Site "https://www.chess.com"]

[Event "Titled Tuesday Blitz May 23 Late 2023"]
[White "Prydun, Andriy"]
[Black "Omranalhosani21"]
[WhiteFideId "14145898"]
[WhiteElo "2164"]
[BlackElo "2611"]
[Result "1-0"]
[Round "03"]
[TimeControl "180+2"]
[Date "2023.05.23"]
[WhiteClock "0:00:40"]
[BlackClock "0:00:08"]

1. Nc3 {[%clk 0:03:00]}  d5 {[%clk 0:02:57]} 2. e3 {[%clk 0:03:00]}  c5 {[%clk 0:02:56]} 3. Nce2 {[%clk 0:03:00]}  Nf6 {[%clk 0:02:55]} 4. d4 {[%clk 0:03:00]}  Nc6 {[%clk 0:02:55]} 5. a3 {[%clk 0:02:58]}  g6 {[%clk 0:02:54]} 6. Nf3 {[%clk 0:02:50]}  Bg7 {[%clk 0:02:54]} 7. g3 {[%clk 0:02:50]}  O-O {[%clk 0:02:54]} 8. Bg2 {[%clk 0:02:50]}  c4 {[%clk 0:02:52]} 9. O-O {[%clk 0:02:39]}  Bf5 {[%clk 0:02:42]} 10. Nc3 {[%clk 0:02:21]}  Ne4 {[%clk 0:02:38]} 11. Nxe4 {[%clk 0:01:59]}  Bxe4 {[%clk 0:02:35]} 12. Nd2 {[%clk 0:01:57]}  Bxg2 {[%clk 0:02:34]} 13. Kxg2 {[%clk 0:01:58]}  e5 {[%clk 0:02:34]} 14. c3 {[%clk 0:01:57]}  b5 {[%clk 0:02:27]} 15. Re1 {[%clk 0:01:54]}  a5 {[%clk 0:02:26]} 16. Nf3 {[%clk 0:01:47]}  e4 {[%clk 0:02:23]} 17. Ng1 {[%clk 0:01:45]}  b4 {[%clk 0:02:23]} 18. Qa4 {[%clk 0:01:43]}  Qc8 {[%clk 0:02:04]} 19. b3 {[%clk 0:01:38]}  cxb3 {[%clk 0:01:56]} 20. cxb4 {[%clk 0:01:38]}  axb4 {[%clk 0:01:55]} 21. Qxb3 {[%clk 0:01:38]}  Qf5 {[%clk 0:01:48]} 22. Bb2 {[%clk 0:01:32]}  Rfb8 {[%clk 0:01:44]} 23. axb4 {[%clk 0:01:31]}  Rxa1 {[%clk 0:01:41]} 24. Rxa1 {[%clk 0:01:30]}  Bf8 {[%clk 0:01:36]} 25. b5 {[%clk 0:01:29]}  Nb4 {[%clk 0:01:37]} 26. Ba3 {[%clk 0:01:06]}  Nd3 {[%clk 0:01:35]} 27. Ra2 {[%clk 0:01:05]}  Bxa3 {[%clk 0:01:32]} 28. Qxa3 {[%clk 0:01:04]}  Rxb5 {[%clk 0:01:30]} 29. Qd6 {[%clk 0:00:54]}  Qc8 {[%clk 0:01:02]} 30. Ra7 {[%clk 0:00:51]}  Rb2 {[%clk 0:00:58]} 31. Rd7 {[%clk 0:00:45]}  Rxf2+ {[%clk 0:00:15]} 32. Kh1 {[%clk 0:00:44]}  Kg7 {[%clk 0:00:14]} 33. Rd8 {[%clk 0:00:43]}  Qe6 {[%clk 0:00:14]} 34. Qf8+ {[%clk 0:00:42]}  Kf6 {[%clk 0:00:15]} 35. Rd6 {[%clk 0:00:43]}  Rd2 {[%clk 0:00:07]} 36. Qh8+ {[%clk 0:00:40]}  Ke7 {[%clk 0:00:08]} 37. Qd8# {[%clk 0:00:40]} 1-0


[Site "https://www.chess.com"]

[Event "Titled Tuesday Blitz May 23 Late 2023"]
[White "Korchmar, Vasiliy"]
[Black "Vaglio Munoz, Jaime"]
[WhiteFideId "24131750"]
[BlackFideId "6500145"]
[WhiteElo "2370"]
[BlackElo "2199"]
[Result "1-0"]
[Round "03"]
[TimeControl "180+2"]
[Date "2023.05.23"]
[WhiteClock "0:00:10"]
[BlackClock "0:00:25"]

1. e4 {[%clk 0:03:00]}  e6 {[%clk 0:02:57]} 2. d4 {[%clk 0:03:00]}  d5 {[%clk 0:02:56]} 3. e5 {[%clk 0:03:01]}  c5 {[%clk 0:02:56]} 4. c3 {[%clk 0:03:02]}  Qb6 {[%clk 0:02:55]} 5. Nf3 {[%clk 0:03:02]}  Bd7 {[%clk 0:02:54]} 6. Be2 {[%clk 0:02:30]}  cxd4 {[%clk 0:02:37]} 7. cxd4 {[%clk 0:02:26]}  Bb5 {[%clk 0:02:37]} 8. O-O {[%clk 0:02:22]}  Bxe2 {[%clk 0:02:37]} 9. Qxe2 {[%clk 0:02:23]}  Nc6 {[%clk 0:02:36]} 10. Nc3 {[%clk 0:02:21]}  Nge7 {[%clk 0:02:34]} 11. Be3 {[%clk 0:01:50]}  h5 {[%clk 0:02:31]} 12. b4 {[%clk 0:01:45]}  Nf5 {[%clk 0:02:26]} 13. b5 {[%clk 0:01:12]}  Na5 {[%clk 0:02:24]} 14. Na4 {[%clk 0:01:12]}  Qd8 {[%clk 0:02:21]} 15. Rfc1 {[%clk 0:00:49]}  b6 {[%clk 0:02:18]} 16. Rc2 {[%clk 0:00:25]}  Ba3 {[%clk 0:02:12]} 17. Qd3 {[%clk 0:00:22]}  Qe7 {[%clk 0:01:51]} 18. Rb1 {[%clk 0:00:23]}  O-O {[%clk 0:01:48]} 19. Bg5 {[%clk 0:00:23]}  f6 {[%clk 0:01:46]} 20. exf6 {[%clk 0:00:19]}  gxf6 {[%clk 0:01:47]} 21. Bc1 {[%clk 0:00:18]}  Bxc1 {[%clk 0:01:45]} 22. Rbxc1 {[%clk 0:00:19]}  Nc4 {[%clk 0:01:44]} 23. Nd2 {[%clk 0:00:15]}  Nfd6 {[%clk 0:01:31]} 24. Nxc4 {[%clk 0:00:13]}  Nxc4 {[%clk 0:01:30]} 25. Nb2 {[%clk 0:00:10]}  Nxb2 {[%clk 0:01:26]} 26. Rxb2 {[%clk 0:00:11]}  Qh7 {[%clk 0:01:24]} 27. Qg3+ {[%clk 0:00:05]}  Kh8 {[%clk 0:01:22]} 28. Rbc2 {[%clk 0:00:05]}  Rg8 {[%clk 0:01:21]} 29. Qe3 {[%clk 0:00:05]}  Rae8 {[%clk 0:01:20]} 30. Rc7 {[%clk 0:00:05]}  Rg7 {[%clk 0:01:19]} 31. Qf4 {[%clk 0:00:03]}  Reg8 {[%clk 0:01:02]} 32. g3 {[%clk 0:00:03]}  Qg6 {[%clk 0:00:58]} 33. h4 {[%clk 0:00:03]}  Kh7 {[%clk 0:00:55]} 34. Kh2 {[%clk 0:00:02]}  Qh6 {[%clk 0:00:54]} 35. Qf3 {[%clk 0:00:02]}  f5 {[%clk 0:00:52]} 36. R1c6 {[%clk 0:00:01]}  f4 {[%clk 0:00:50]} 37. Rxg7+ {[%clk 0:00:01]}  Rxg7 {[%clk 0:00:49]} 38. Qxf4 {[%clk 0:00:02]}  Qxf4 {[%clk 0:00:48]} 39. gxf4 {[%clk 0:00:03]}  Rf7 {[%clk 0:00:45]} 40. Kg3 {[%clk 0:00:03]}  Rf6 {[%clk 0:00:45]} 41. Rc7+ {[%clk 0:00:03]}  Kg6 {[%clk 0:00:45]} 42. Rxa7 {[%clk 0:00:03]}  Kf5 {[%clk 0:00:46]} 43. Rb7 {[%clk 0:00:03]}  Rg6+ {[%clk 0:00:46]} 44. Kf3 {[%clk 0:00:03]}  Rg4 {[%clk 0:00:47]} 45. Rxb6 {[%clk 0:00:04]}  Rxf4+ {[%clk 0:00:47]} 46. Ke3 {[%clk 0:00:04]}  Re4+ {[%clk 0:00:43]} 47. Kd3 {[%clk 0:00:04]}  Rxh4 {[%clk 0:00:43]} 48. Rb8 {[%clk 0:00:05]}  Rh3+ {[%clk 0:00:43]} 49. Kc2 {[%clk 0:00:04]}  Ra3 {[%clk 0:00:42]} 50. Kb2 {[%clk 0:00:04]}  Ra4 {[%clk 0:00:41]} 51. Kb3 {[%clk 0:00:04]}  Rxd4 {[%clk 0:00:39]} 52. b6 {[%clk 0:00:04]}  Rd1 {[%clk 0:00:40]} 53. Kc2 {[%clk 0:00:05]}  Rd4 {[%clk 0:00:38]} 54. b7 {[%clk 0:00:05]}  Rc4+ {[%clk 0:00:36]} 55. Kb3 {[%clk 0:00:04]}  Rc1 {[%clk 0:00:36]} 56. Rf8+ {[%clk 0:00:05]}  Ke4 {[%clk 0:00:36]} 57. b8=Q {[%clk 0:00:06]}  Rb1+ {[%clk 0:00:35]} 58. Kc2 {[%clk 0:00:06]}  Rxb8 {[%clk 0:00:34]} 59. Rxb8 {[%clk 0:00:07]}  Kf3 {[%clk 0:00:30]} 60. Re8 {[%clk 0:00:07]}  h4 {[%clk 0:00:27]} 61. Rxe6 {[%clk 0:00:08]}  d4 {[%clk 0:00:27]} 62. Kd3 {[%clk 0:00:08]}  Kxf2 {[%clk 0:00:27]} 63. Rh6 {[%clk 0:00:08]}  Kg3 {[%clk 0:00:26]} 64. a4 {[%clk 0:00:08]}  h3 {[%clk 0:00:26]} 65. a5 {[%clk 0:00:08]}  Kg2 {[%clk 0:00:27]} 66. a6 {[%clk 0:00:08]}  h2 {[%clk 0:00:28]} 67. a7 {[%clk 0:00:09]}  h1=Q {[%clk 0:00:28]} 68. Rxh1 {[%clk 0:00:10]}  Kf2 {[%clk 0:00:27]} 69. a8=Q {[%clk 0:00:11]}  Kg3 {[%clk 0:00:27]} 70. Qf8 {[%clk 0:00:10]}  Kg2 {[%clk 0:00:26]} 71. Rh7 {[%clk 0:00:09]}  Kg1 {[%clk 0:00:24]} 72. Rg7+ {[%clk 0:00:09]}  Kh2 {[%clk 0:00:25]} 73. Qh8# {[%clk 0:00:10]} 1-0


[Site "https://www.chess.com"]